[Event "GER-ch Youth U18w 2019"]
[Site "Willingen"]
[Date "2019.06.11"]
[Round "4.9"]
[White "Tampe, Friederike"]
[Black "Alferova, Ekaterina"]
[Result "1/2-1/2"]
[ECO "B13"]
[WhiteElo "1512"]
[BlackElo "1597"]
[Annotator "NA"]
[PlyCount "85"]
[EventDate "2019.06.07"]
[EventType "swiss"]
[EventRounds "9"]
[EventCountry "GER"]
[SourceTitle "playchess.com"]
[Source "ChessBase"]
[SourceQuality "1"]
[TimeControl "40/5400+30:1800+30"]

1. e4 {[%emt 0:00:00]} c6 {[%emt 0:00:00]} 2. d4 {[%emt 0:00:00]} d5 {[%emt 0:00:00]} 3. exd5 {[%emt 0:00:00]} cxd5 {[%emt 0:00:00]} 4. Bd3 {[%emt 0:00:00]} Nc6 {[%emt 0:00:00]} 5. c3 {[%emt 0:00:00]} Qc7 {[%emt 0:00:07]} 6. Ne2 {[%emt 0:00:06]} Nf6 {[%emt 0:00:54]} 7. Nd2 {[%emt 0:07:59]} e6 {[%emt 0:02:14]} 8. O-O {[%emt 0:04:32]} Bd6 {[%emt 0:00:15]} 9. h3 {[%emt 0:00:09]} O-O {[%emt 0:00:25]} 10. Qc2 {[%emt 0:01:17]} h6 {[%emt 0:00:44]} 11. Nf3 {[%emt 0:00:55]} Bd7 {[%emt 0:00:31]} 12. Be3 {[%emt 0:00:38]} Rac8 {[%emt 0:00:21]} 13. Qc1 {[%emt 0:02:38]} Ne7 {[%emt 0:11:35]} 14. Nh4 {[%emt 0:09:55]} Nf5 {[%emt 0:08:36]} 15. Nxf5 {[%emt 0:02:21]} exf5 {[%emt 0:01:10]} 16. Bf4 {[%emt 0:02:18]} Nh5 {[%emt 0:02:59]} 17. Bxd6 {[%emt 0:02:07]} Qxd6 {[%emt 0:00:08]} 18. Qd1 {[%emt 0:05:22]} Rfe8 {[%emt 0:11:55]} 19. Nc1 {[%emt 0:06:34]} Nf4 {[%emt 0:01:43]} 20. Bc2 {[%emt 0:00:14]} Qe6 {[%emt 0:07:29]} 21. Kh1 {[%emt 0:12:08]} Bb5 {[%emt 0:04:10]} 22. Nd3 {[%emt 0:04:24]} Qd6 {[%emt 0:14:51]} 23. Re1 {[%emt 0:06:14]} Rxe1+ {[%emt 0:07:09]} 24. Nxe1 {[%emt 0:00:01]} Re8 {[%emt 0:03:39]} 25. Bxf5 {[%emt 0:08:25]} Re2 {[%emt 0:01:19]} 26. Bd3 {[%emt 0:00:23]} Rxe1+ {[%emt 0:03:46]} 27. Qxe1 {[%emt 0:00:09]} Nxd3 {[%emt 0:03:03]} 28. Qd2 {[%emt 0:04:53]} Qf6 {[%emt 0:01:33]} 29. Kg1 {[%emt 0:00:31]} Nf4 {[%emt 0:00:50]} 30. Qe3 {[%emt 0:02:34]} Qg5 {[%emt 0:00:59]} 31. Qf3 {[%emt 0:00:14]} Be2 {[%emt 0:02:20]} 32. Qg3 {[%emt 0:00:10]} Qxg3 {[%emt 0:06:37]} 33. fxg3 {[%emt 0:00:02]} Ne6 {[%emt 0:00:09]} 34. Kf2 {[%emt 0:00:51]} Bb5 {[%emt 0:00:34]} 35. Rc1 {[%emt 0:00:48]} Kf8 {[%emt 0:00:18]} 36. b3 {[%emt 0:01:00]} Bc6 {[%emt 0:00:20]} 37. Ke3 {[%emt 0:00:58]} Ke7 {[%emt 0:01:43]} 38. Rc2 {[%emt 0:01:31]} Kd6 {[%emt 0:00:54]} 39. c4 {[%emt 0:01:50]} b6 {[%emt 0:00:50]} 40. g4 {[%emt 0:05:13]} f6 {[%emt 0:02:18]} 41. h4 {[%emt 0:34:12]} a6 {[%emt 0:02:23]} 42. g3 {[%emt 0:00:00]} Bd7 {[%emt 0:01:55]} 43. Rd2 {[%emt 0:00:00] normal} 1/2-1/2

[Event "GER-ch Youth U18w 2019"]
[Site "Willingen"]
[Date "2019.06.11"]
[Round "4.10"]
[White "Schneider, Xenia"]
[Black "Trams, Emma Joe"]
[Result "0-1"]
[ECO "C21"]
[WhiteElo "1364"]
[BlackElo "1418"]
[Annotator "NA"]
[PlyCount "46"]
[EventDate "2019.06.07"]
[EventType "swiss"]
[EventRounds "9"]
[EventCountry "GER"]
[SourceTitle "playchess.com"]
[Source "ChessBase"]
[SourceQuality "1"]
[TimeControl "40/5400+30:1800+30"]

1. e4 {[%emt 0:00:00]} e5 {[%emt 0:00:00]} 2. d4 {[%emt 0:00:00]} exd4 {[%emt 0:00:00]} 3. Bc4 {[%emt 0:00:00]} d6 {[%emt 0:00:30]} 4. Qxd4 {[%emt 0:01:36]} Nc6 {[%emt 0:00:32]} 5. Qc3 {[%emt 0:00:27]} Nf6 {[%emt 0:00:39]} 6. Qe3 {[%emt 0:08:26]} Be7 {[%emt 0:00:48]} 7. Nf3 {[%emt 0:00:36]} O-O {[%emt 0:00:50]} 8. Bd2 {[%emt 0:01:24]} Ne5 {[%emt 0:02:02]} 9. Nxe5 {[%emt 0:02:12]} dxe5 {[%emt 0:00:08]} 10. Bc3 {[%emt 0:01:14]} Bd6 {[%emt 0:00:37]} 11. Nd2 {[%emt 0:00:34]} Re8 {[%emt 0:00:50]} 12. O-O-O {[%emt 0:00:28]} Be6 {[%emt 0:01:21]} 13. Be2 {[%emt 0:06:36]} Qe7 {[%emt 0:01:50]} 14. Qg3 {[%emt 0:00:54]} Bd7 {[%emt 0:03:23]} 15. h4 {[%emt 0:13:23]} h6 {[%emt 0:01:49]} 16. h5 {[%emt 0:01:45]} a5 {[%emt 0:01:37]} 17. f3 {[%emt 0:04:16]} b5 {[%emt 0:00:49]} 18. b3 {[%emt 0:02:08]} a4 {[%emt 0:01:44]} 19. Nf1 {[%emt 0:03:12]} axb3 {[%emt 0:01:22]} 20. axb3 {[%emt 0:01:00]} Bb4 {[%emt 0:03:30]} 21. Qe1 {[%emt 0:05:59] normal} Ra1+ {[%emt 0:05:30] normal} 22. Kb2 {[%emt 0:00:42]} Bxc3+ {[%emt 0:00:11]} 23. Kxc3 {[%emt 0:00:08] normal} Qc5+ {[%emt 0:03:25] normal} 0-1

[Event "GER-ch Youth U18w 2019"]
[Site "Willingen"]
[Date "2019.06.11"]
[Round "4.11"]
[White "Schiewe, Nadin"]
[Black "Kuemmel, Tina"]
[Result "1-0"]
[ECO "A05"]
[WhiteElo "1608"]
[BlackElo "1446"]
[Annotator "NA"]
[PlyCount "95"]
[EventDate "2019.06.07"]
[EventType "swiss"]
[EventRounds "9"]
[EventCountry "GER"]
[SourceTitle "playchess.com"]
[Source "ChessBase"]
[SourceQuality "1"]
[TimeControl "40/5400+30:1800+30"]

1. Nf3 Nf6 {[%emt 0:00:02]} 2. b3 {[%emt 0:00:35]} c5 3. c4 {[%emt 0:03:43]} Nc6 {[%emt 0:08:27]} 4. Bb2 {[%emt 0:01:45]} e6 {[%emt 0:09:48]} 5. e3 {[%emt 0:01:53]} d5 6. d4 cxd4 {[%emt 0:03:30]} 7. Nxd4 {[%emt 0:01:59]} Bb4+ {[%emt 0:00:07]} 8. Bc3 e5 9. Nxc6 {[%emt 0:12:35]} Bxc3+ {[%emt 0:10:01]} 10. Nxc3 {[%emt 0:02:49]} bxc6 11. cxd5 {[%emt 0:04:15]} cxd5 {[%emt 0:02:10]} 12. Bb5+ {[%emt 0:01:54]} Bd7 {[%emt 0:00:37]} 13. O-O {[%emt 0:01:06]} O-O 14. Qd3 {[%emt 0:03:07]} Be6 {[%emt 0:10:19]} 15. Rfd1 {[%emt 0:04:10]} Rc8 {[%emt 0:05:36]} 16. b4 {[%emt 0:10:40]} Qe7 {[%emt 0:05:46]} 17. a3 {[%emt 0:01:44]} Rfd8 {[%emt 0:03:29]} 18. Ne2 {[%emt 0:03:37]} g6 {[%emt 0:05:26]} 19. Rac1 {[%emt 0:04:28]} Bf5 {[%emt 0:01:00]} 20. Qb3 {[%emt 0:01:29]} Qb7 {[%emt 0:03:26]} 21. Bd3 {[%emt 0:03:38]} Bg4 {[%emt 0:04:49]} 22. h3 {[%emt 0:04:36]} Be6 {[%emt 0:08:43]} 23. Qb2 {[%emt 0:01:29]} Nd7 {[%emt 0:01:02]} 24. Bc2 {[%emt 0:03:14]} f6 {[%emt 0:01:26]} 25. Bb3 {[%emt 0:06:09]} Nb6 {[%emt 0:00:11]} 26. Nc3 {[%emt 0:08:11]} Nc4 {[%emt 0:01:19]} 27. Qa2 {[%emt 0:00:44]} Qa6 {[%emt 0:01:19]} 28. Na4 {[%emt 0:01:00]} Bf7 {[%emt 0:04:14]} 29. Bxc4 {[%emt 0:05:49]} dxc4 {[%emt 0:00:11]} 30. Nc3 {[%emt 0:00:57]} Rd3 {[%emt 0:02:04]} 31. a4 {[%emt 0:02:50]} Rcd8 {[%emt 0:02:24]} 32. Qc2 {[%emt 0:00:38]} Qb7 {[%emt 0:02:17]} 33. b5 {[%emt 0:00:56]} R8d6 {[%emt 0:02:20]} 34. Kf1 {[%emt 0:03:12]} Qd7 {[%emt 0:00:26]} 35. Ke2 {[%emt 0:00:59]} Qf5 {[%emt 0:02:24]} 36. g4 {[%emt 0:00:55]} Qd7 {[%emt 0:01:10]} 37. Ne4 {[%emt 0:00:17]} Re6 {[%emt 0:01:44]} 38. Nc5 {[%emt 0:00:26]} Qe7 {[%emt 0:00:37]} 39. Nxe6 {[%emt 0:00:13]} Rxd1 {[%emt 0:00:26]} 40. Rxd1 {[%emt 0:00:33]} Bxe6 {[%emt 0:00:19]} 41. Qd2 {[%emt 0:02:19]} Kf7 {[%emt 0:02:00]} 42. Qd6 {[%emt 0:01:35]} Qb7 {[%emt 0:01:35]} 43. f3 g5 {[%emt 0:02:42]} 44. Rd2 {[%emt 0:10:19]} h6 {[%emt 0:02:54]} 45. e4 Bc8 {[%emt 0:06:05]} 46. Qd5+ {[%emt 0:06:45]} Qxd5 {[%emt 0:00:32]} 47. Rxd5 {[%emt 0:00:08]} Be6 {[%emt 0:00:31]} 48. Rc5 {[%emt 0:01:00] normal} 1-0

[Event "GER-ch Youth U18w 2019"]
[Site "Willingen"]
[Date "2019.06.11"]
[Round "4.12"]
[White "Mundt, Alexandra"]
[Black "Peters, Jenna Maria Lara"]
[Result "1/2-1/2"]
[ECO "C67"]
[WhiteElo "1797"]
[BlackElo "1594"]
[Annotator "NA"]
[PlyCount "52"]
[EventDate "2019.06.07"]
[EventType "swiss"]
[EventRounds "9"]
[EventCountry "GER"]
[SourceTitle "playchess.com"]
[Source "ChessBase"]
[SourceQuality "1"]
[TimeControl "40/5400+30:1800+30"]

1. e4 {[%emt 0:00:00]} e5 {[%emt 0:00:00]} 2. Nf3 {[%emt 0:00:00]} Nc6 {[%emt 0:00:00]} 3. Bb5 {[%emt 0:00:00]} Nf6 {[%emt 0:00:11]} 4. O-O {[%emt 0:00:12]} Nxe4 {[%emt 0:00:08]} 5. Re1 {[%emt 0:00:11]} Nd6 {[%emt 0:17:43]} 6. Bxc6 {[%emt 0:06:45]} dxc6 {[%emt 0:05:53]} 7. Nxe5 {[%emt 0:01:25]} Be7 {[%emt 0:06:20]} 8. Qe2 {[%emt 0:10:11]} Be6 {[%emt 0:05:37]} 9. Nf3 {[%emt 0:07:56]} Nf5 {[%emt 0:05:38]} 10. c3 {[%emt 0:01:27]} O-O 11. d4 h6 {[%emt 0:10:25]} 12. Bf4 {[%emt 0:03:38]} g5 {[%emt 0:21:51]} 13. Bd2 {[%emt 0:05:09]} c5 {[%emt 0:08:26]} 14. dxc5 {[%emt 0:04:53]} Bxc5 15. Qb5 {[%emt 0:06:24]} Bb6 {[%emt 0:02:58]} 16. Bc1 {[%emt 0:07:05]} Qd5 {[%emt 0:03:25]} 17. Qa4 {[%emt 0:08:18]} Qc4 {[%emt 0:04:09]} 18. Qc2 {[%emt 0:01:49]} Rad8 {[%emt 0:00:48]} 19. Ne5 {[%emt 0:04:18]} Qd5 {[%emt 0:01:50]} 20. Nd2 {[%emt 0:04:41]} Ne3 {[%emt 0:01:43]} 21. fxe3 {[%emt 0:03:53]} Qxe5 {[%emt 0:00:20]} 22. Nf3 {[%emt 0:00:11]} Bf5 {[%emt 0:01:29]} 23. Qe2 {[%emt 0:01:30]} Qe4 {[%emt 0:00:51]} 24. Nd4 {[%emt 0:01:48]} Bg4 {[%emt 0:00:59]} 25. Qf1 {[%emt 0:02:00]} Rfe8 {[%emt 0:00:22] normal} 26. h3 {[%emt 0:08:42]} Bh5 {[%emt 0:00:15] normal} 1/2-1/2

[Event "GER-ch Youth U18w 2019"]
[Site "Willingen"]
[Date "2019.06.11"]
[Round "4.13"]
[White "Gesell, Patricia"]
[Black "Gauchel, Verena"]
[Result "1-0"]
[ECO "A05"]
[WhiteElo "1046"]
[BlackElo "1534"]
[Annotator "NA"]
[PlyCount "20"]
[EventDate "2019.06.07"]
[EventType "swiss"]
[EventRounds "9"]
[EventCountry "GER"]
[SourceTitle "playchess.com"]
[Source "ChessBase"]
[SourceQuality "1"]
[TimeControl "40/5400+30:1800+30"]

1. Nf3 {[%emt 0:00:00]} Nf6 {[%emt 0:00:00]} 2. c4 {[%emt 0:02:29]} c6 3. g3 {[%emt 0:01:04]} g6 {[%emt 0:01:57]} 4. Bg2 {[%emt 0:01:43]} Bg7 {[%emt 0:02:22]} 5. Nc3 {[%emt 0:04:57]} d5 {[%emt 0:00:52]} 6. cxd5 {[%emt 0:01:42]} cxd5 {[%emt 0:01:47]} 7. O-O {[%emt 0:03:59]} O-O {[%emt 0:02:29]} 8. Rb1 {[%emt 0:05:43]} Nc6 {[%emt 0:10:33]} 9. b3 {[%emt 0:03:57]} Ne4 10. Bb2 Bf5 {[%emt 0:06:02] normal} 1-0

[Event "GER-ch Youth U18w 2019"]
[Site "Willingen"]
[Date "2019.06.12"]
[Round "5.1"]
[White "Nguyen, Ha Thanh"]
[Black "Moenster, Madita"]
[Result "1-0"]
[ECO "B92"]
[WhiteElo "1940"]
[BlackElo "1994"]
[Annotator "NA"]
[PlyCount "93"]
[EventDate "2019.06.07"]
[EventType "swiss"]
[EventRounds "9"]
[EventCountry "GER"]
[SourceTitle "playchess.com"]
[Source "ChessBase"]
[SourceQuality "1"]
[TimeControl "40/5400+30:1800+30"]

1. e4 {[%emt 0:00:00]} c5 {[%emt 0:00:00]} 2. Nf3 {[%emt 0:00:00]} d6 {[%emt 0:00:00]} 3. d4 {[%emt 0:00:00]} cxd4 {[%emt 0:00:00]} 4. Nxd4 {[%emt 0:00:00]} Nf6 {[%emt 0:00:00]} 5. Nc3 {[%emt 0:00:00]} a6 {[%emt 0:00:06]} 6. Be2 {[%emt 0:00:09]} e5 {[%emt 0:00:11]} 7. Nb3 {[%emt 0:00:06]} Be7 {[%emt 0:00:13]} 8. O-O {[%emt 0:00:11]} O-O {[%emt 0:00:15]} 9. Kh1 {[%emt 0:00:25]} Nc6 {[%emt 0:00:56]} 10. Be3 {[%emt 0:00:24]} Be6 {[%emt 0:02:13]} 11. Bf3 {[%emt 0:00:55]} Qc7 {[%emt 0:01:52]} 12. a3 {[%emt 0:07:48]} Na5 {[%emt 0:04:22]} 13. Nxa5 {[%emt 0:10:42]} Qxa5 {[%emt 0:00:07]} 14. Rc1 {[%emt 0:02:57]} Rad8 {[%emt 0:13:25]} 15. Qd2 {[%emt 0:33:07]} Qc7 {[%emt 0:07:08]} 16. Nd5 {[%emt 0:02:05]} Bxd5 {[%emt 0:04:54]} 17. exd5 {[%emt 0:00:08]} Nd7 {[%emt 0:01:51]} 18. Be2 {[%emt 0:02:05]} f5 {[%emt 0:14:53]} 19. f3 {[%emt 0:01:17]} Rc8 {[%emt 0:05:40]} 20. c4 {[%emt 0:03:48]} Qd8 {[%emt 0:02:40]} 21. b4 {[%emt 0:02:02]} Nf6 {[%emt 0:06:12]} 22. Rfd1 {[%emt 0:01:43]} f4 {[%emt 0:05:28]} 23. Bf2 {[%emt 0:06:37]} Qd7 {[%emt 0:04:30]} 24. c5 {[%emt 0:04:37]} Kh8 {[%emt 0:07:50]} 25. c6 {[%emt 0:02:53]} Qc7 {[%emt 0:01:06]} 26. a4 {[%emt 0:01:28]} Ra8 {[%emt 0:12:47]} 27. a5 {[%emt 0:00:35]} bxc6 {[%emt 0:00:50]} 28. Rxc6 {[%emt 0:01:09]} Qb7 {[%emt 0:01:14]} 29. Rdc1 {[%emt 0:01:03]} e4 {[%emt 0:01:48]} 30. Bb6 {[%emt 0:01:31]} e3 {[%emt 0:00:29]} 31. Qd4 {[%emt 0:01:40]} Qb8 {[%emt 0:00:21]} 32. Bc7 {[%emt 0:00:51]} Qe8 {[%emt 0:01:30]} 33. Rxa6 {[%emt 0:03:30]} Rxa6 {[%emt 0:00:39]} 34. Bxa6 {[%emt 0:00:07]} Nh5 {[%emt 0:00:27]} 35. Kg1 {[%emt 0:01:41]} Bf6 {[%emt 0:00:16]} 36. Qe4 {[%emt 0:01:44]} Be5 {[%emt 0:00:22]} 37. Be2 {[%emt 0:02:43]} Nf6 {[%emt 0:00:27]} 38. Qd3 {[%emt 0:01:45]} Qf7 {[%emt 0:00:21]} 39. Qd1 {[%emt 0:02:58]} Qxd5 {[%emt 0:01:27]} 40. Qxd5 {[%emt 0:00:37]} Nxd5 {[%emt 0:00:05]} 41. b5 {[%emt 0:30:44]} Nc3 {[%emt 0:08:26]} 42. Kf1 {[%emt 0:00:00]} Bd4 {[%emt 0:11:18]} 43. b6 {[%emt 0:00:00]} Nd5 {[%emt 0:03:18]} 44. Bxd6 {[%emt 0:00:00]} Rg8 {[%emt 0:02:12]} 45. b7 {[%emt 0:00:00]} Ba7 {[%emt 0:00:35]} 46. Rc8 {[%emt 0:00:00] normal} Rxc8 {[%emt 0:02:19]} 47. bxc8=Q# 1-0

[Event "GER-ch Youth U18w 2019"]
[Site "Willingen"]
[Date "2019.06.12"]
[Round "5.2"]
[White "Ziegenfuss, Antonia"]
[Black "Schulze, Lara"]
[Result "0-1"]
[ECO "A46"]
[WhiteElo "2111"]
[BlackElo "2160"]
[Annotator "NA"]
[PlyCount "111"]
[EventDate "2019.06.07"]
[EventType "swiss"]
[EventRounds "9"]
[EventCountry "GER"]
[SourceTitle "playchess.com"]
[Source "ChessBase"]
[SourceQuality "1"]
[TimeControl "40/5400+30:1800+30"]

1. d4 {[%emt 0:00:00]} Nf6 {[%emt 0:00:00]} 2. Nf3 {[%emt 0:00:00]} e6 {[%emt 0:00:00]} 3. Bf4 {[%emt 0:00:00]} d5 {[%emt 0:00:55]} 4. e3 {[%emt 0:00:10]} c5 {[%emt 0:00:22]} 5. c3 {[%emt 0:00:15]} Nc6 {[%emt 0:02:25]} 6. Nbd2 {[%emt 0:00:17]} cxd4 {[%emt 0:00:47]} 7. cxd4 {[%emt 0:04:50]} Be7 {[%emt 0:09:41]} 8. h3 {[%emt 0:07:05]} O-O {[%emt 0:02:53]} 9. Be2 {[%emt 0:09:36]} Bd6 {[%emt 0:01:55]} 10. Bxd6 {[%emt 0:09:46]} Qxd6 {[%emt 0:00:34]} 11. O-O {[%emt 0:01:09]} Bd7 {[%emt 0:02:50]} 12. Rc1 {[%emt 0:04:11]} Rfc8 {[%emt 0:03:25]} 13. Bb5 {[%emt 0:08:53]} Ne7 {[%emt 0:13:22]} 14. Bd3 {[%emt 0:08:46]} Qb6 {[%emt 0:02:53]} 15. Qb3 {[%emt 0:04:02]} Nc6 {[%emt 0:06:08]} 16. Qa3 {[%emt 0:14:34]} Nb4 {[%emt 0:11:58]} 17. Ne5 {[%emt 0:02:41]} Nxd3 {[%emt 0:02:59]} 18. Nxd3 {[%emt 0:00:07]} Bb5 {[%emt 0:03:29]} 19. Rxc8+ {[%emt 0:04:00]} Rxc8 {[%emt 0:00:01]} 20. Rc1 {[%emt 0:00:13]} Rxc1+ {[%emt 0:02:12]} 21. Nxc1 {[%emt 0:00:05]} Qc7 {[%emt 0:06:48]} 22. Ncb3 {[%emt 0:04:36]} b6 {[%emt 0:00:51]} 23. Qb4 {[%emt 0:05:22]} Be8 {[%emt 0:02:39]} 24. f3 {[%emt 0:07:29]} a5 {[%emt 0:10:48]} 25. Qc3 {[%emt 0:00:15]} Qxc3 {[%emt 0:00:38]} 26. bxc3 {[%emt 0:00:05]} Bb5 {[%emt 0:01:20]} 27. Kf2 {[%emt 0:01:31]} Kf8 {[%emt 0:00:13]} 28. e4 {[%emt 0:00:50]} Ke7 {[%emt 0:00:50]} 29. Ke3 {[%emt 0:00:15]} g5 {[%emt 0:03:34]} 30. Nc1 {[%emt 0:01:51]} Nh5 {[%emt 0:02:10]} 31. Kf2 {[%emt 0:01:36]} Nf4 {[%emt 0:02:58]} 32. Nf1 {[%emt 0:00:38]} dxe4 {[%emt 0:02:33]} 33. fxe4 {[%emt 0:00:15]} Bc6 {[%emt 0:00:06]} 34. Nd2 {[%emt 0:00:34]} f5 {[%emt 0:00:11]} 35. exf5 {[%emt 0:00:43]} exf5 {[%emt 0:01:08]} 36. Nf3 {[%emt 0:00:11]} h6 {[%emt 0:01:01]} 37. Ne1 {[%emt 0:00:20]} Bd5 {[%emt 0:00:38]} 38. a3 {[%emt 0:00:29]} Bc4 {[%emt 0:00:34]} 39. Ke3 {[%emt 0:00:37]} Nd5+ {[%emt 0:00:48]} 40. Kd2 {[%emt 0:00:20]} f4 {[%emt 0:00:40]} 41. Ncd3 {[%emt 0:10:22]} Ne3 {[%emt 0:04:30]} 42. Ke2 {[%emt 0:01:24]} Ke6 {[%emt 0:05:35]} 43. g4 {[%emt 0:07:35]} a4 {[%emt 0:06:38]} 44. Kd2 {[%emt 0:07:15]} Nf1+ {[%emt 0:09:49]} 45. Kc1 {[%emt 0:03:37]} Ng3 {[%emt 0:02:39]} 46. Ne5 {[%emt 0:01:38]} Bf1 {[%emt 0:00:37]} 47. h4 {[%emt 0:01:42]} gxh4 {[%emt 0:01:08]} 48. Ng6 {[%emt 0:00:23]} Ne2+ {[%emt 0:00:42]} 49. Kd2 {[%emt 0:00:25]} h3 {[%emt 0:00:37]} 50. Nf3 {[%emt 0:00:13]} Kf6 {[%emt 0:01:15]} 51. Nge5 {[%emt 0:01:01]} Ng3 {[%emt 0:00:53]} 52. Nd7+ {[%emt 0:00:28]} Ke6 {[%emt 0:00:45]} 53. Nxb6 {[%emt 0:00:29]} Bg2 {[%emt 0:00:41]} 54. d5+ {[%emt 0:00:40]} Kd6 {[%emt 0:00:56]} 55. Nc4+ {[%emt 0:00:08]} Kxd5 {[%emt 0:00:14]} 56. Nce5 {[%emt 0:00:07] normal Kxe5} 0-1

[Event "GER-ch Youth U18w 2019"]
[Site "Willingen"]
[Date "2019.06.12"]
[Round "5.4"]
[White "Arnhold, Steffi"]
[Black "Kobald, Jacqueline"]
[Result "1-0"]
[ECO "B42"]
[WhiteElo "1996"]
[BlackElo "1839"]
[Annotator "NA"]
[PlyCount "63"]
[EventDate "2019.06.07"]
[EventType "swiss"]
[EventRounds "9"]
[EventCountry "GER"]
[SourceTitle "playchess.com"]
[Source "ChessBase"]
[SourceQuality "1"]
[TimeControl "40/5400+30:1800+30"]

1. e4 {[%emt 0:00:00]} c5 {[%emt 0:00:00]} 2. Nf3 {[%emt 0:00:00]} e6 {[%emt 0:00:00]} 3. d4 {[%emt 0:00:00]} cxd4 {[%emt 0:00:00]} 4. Nxd4 {[%emt 0:00:00]} a6 {[%emt 0:00:00]} 5. Bd3 {[%emt 0:00:36]} Qc7 {[%emt 0:00:13]} 6. O-O {[%emt 0:02:34]} Nf6 {[%emt 0:01:06]} 7. Nc3 {[%emt 0:02:26]} d6 {[%emt 0:00:37]} 8. f4 {[%emt 0:00:56]} Nbd7 {[%emt 0:00:35]} 9. Kh1 {[%emt 0:01:47]} Be7 {[%emt 0:00:55]} 10. Qe1 {[%emt 0:03:35]} O-O {[%emt 0:07:08]} 11. Qg3 {[%emt 0:05:31]} g6 {[%emt 0:09:17]} 12. Nf3 {[%emt 0:11:24]} b5 {[%emt 0:09:58]} 13. a3 {[%emt 0:04:23]} Bb7 {[%emt 0:02:42]} 14. Bd2 {[%emt 0:03:55]} Rac8 {[%emt 0:11:27]} 15. Rae1 {[%emt 0:03:01]} Nh5 {[%emt 0:15:12]} 16. Qh3 {[%emt 0:02:57]} Nc5 {[%emt 0:07:44]} 17. f5 {[%emt 0:10:18]} exf5 {[%emt 0:08:25]} 18. exf5 {[%emt 0:02:43]} Nxd3 {[%emt 0:03:26]} 19. cxd3 {[%emt 0:00:50]} Bxf3 {[%emt 0:04:42]} 20. Rxf3 {[%emt 0:05:58]} Qd8 {[%emt 0:02:44]} 21. Nd5 {[%emt 0:02:48]} Bh4 {[%emt 0:01:56]} 22. Ref1 {[%emt 0:02:13]} Bg5 {[%emt 0:02:07]} 23. Bc3 {[%emt 0:03:11]} Rc5 {[%emt 0:03:17]} 24. Ne3 {[%emt 0:04:49]} d5 {[%emt 0:02:08]} 25. Bd4 {[%emt 0:00:32]} Rc6 {[%emt 0:00:19]} 26. Ng4 {[%emt 0:01:40]} Qc8 {[%emt 0:01:02]} 27. Qh4 {[%emt 0:12:14]} Qd8 {[%emt 0:01:46]} 28. Qf2 {[%emt 0:00:23]} f6 {[%emt 0:02:33]} 29. h4 {[%emt 0:01:48]} Bf4 {[%emt 0:00:13]} 30. Rxf4 {[%emt 0:00:55]} Nxf4 {[%emt 0:00:02]} 31. Qxf4 {[%emt 0:00:08]} Qc7 {[%emt 0:01:13]} 32. Nxf6+ {[%emt 0:01:10] normal} 1-0

[Event "GER-ch Youth U18w 2019"]
[Site "Willingen"]
[Date "2019.06.12"]
[Round "5.5"]
[White "Poetsch, Leonore"]
[Black "Koenze, Heike"]
[Result "1-0"]
[ECO "B94"]
[WhiteElo "1982"]
[BlackElo "1919"]
[Annotator "NA"]
[PlyCount "61"]
[EventDate "2019.06.07"]
[EventType "swiss"]
[EventRounds "9"]
[EventCountry "GER"]
[SourceTitle "playchess.com"]
[Source "ChessBase"]
[SourceQuality "1"]
[TimeControl "40/5400+30:1800+30"]

1. e4 {[%emt 0:00:00]} c5 {[%emt 0:00:00]} 2. Nf3 {[%emt 0:00:00]} d6 {[%emt 0:00:00]} 3. d4 {[%emt 0:00:00]} cxd4 {[%emt 0:00:00]} 4. Nxd4 {[%emt 0:00:00]} Nf6 {[%emt 0:00:02]} 5. Nc3 {[%emt 0:00:00]} a6 {[%emt 0:00:08]} 6. Bg5 {[%emt 0:00:02]} Nbd7 {[%emt 0:00:11]} 7. Bc4 {[%emt 0:00:11]} Qc7 {[%emt 0:01:41]} 8. Bb3 {[%emt 0:00:10]} g6 {[%emt 0:03:58]} 9. Qd2 {[%emt 0:03:45]} Bg7 {[%emt 0:00:13]} 10. O-O-O {[%emt 0:01:23]} b5 {[%emt 0:02:39]} 11. f3 {[%emt 0:03:13]} Bb7 {[%emt 0:01:37]} 12. Bh6 {[%emt 0:03:09]} O-O {[%emt 0:00:14]} 13. h4 {[%emt 0:04:48]} b4 {[%emt 0:01:37]} 14. Nd5 {[%emt 0:05:48]} Nxd5 {[%emt 0:00:24]} 15. Bxd5 {[%emt 0:00:30]} Bxd5 {[%emt 0:00:07]} 16. exd5 {[%emt 0:00:06]} Rfc8 {[%emt 0:02:03]} 17. Bxg7 {[%emt 0:00:33]} Kxg7 {[%emt 0:00:19]} 18. h5 {[%emt 0:03:39]} Rh8 {[%emt 0:00:45]} 19. h6+ {[%emt 0:01:25]} Kf8 {[%emt 0:01:02]} 20. g4 {[%emt 0:08:12]} Ne5 {[%emt 0:08:44]} 21. g5 {[%emt 0:05:13]} Qa5 {[%emt 0:03:37]} 22. Nb3 {[%emt 0:11:34]} Qb5 {[%emt 0:05:22]} 23. f4 {[%emt 0:03:01]} Nc4 {[%emt 0:00:16]} 24. Qd4 {[%emt 0:02:34]} Rg8 {[%emt 0:00:10]} 25. Rh4 {[%emt 0:04:19]} Rc8 {[%emt 0:00:41]} 26. Rdh1 {[%emt 0:06:50]} a5 {[%emt 0:05:44]} 27. Qg7+ {[%emt 0:02:52]} Rxg7 {[%emt 0:00:33]} 28. hxg7+ {[%emt 0:00:04]} Ke8 {[%emt 0:00:12]} 29. g8=Q+ {[%emt 0:00:17]} Kd7 {[%emt 0:00:06]} 30. Qxf7 {[%emt 0:00:58]} Nxb2 {[%emt 0:01:27]} 31. Qe6+ {[%emt 0:01:18] normal} 1-0